bitfinex/quotes_BTCUSD_20250814
["timestamp","ask_amount","ask_price","bid_price","bid_amount"]
[1755209616142,1e-08,118160.0,118150.0,0.84203663]
[1755209616346,1e-08,118160.0,118150.0,0.86203663]
[1755209616945,1e-08,118160.0,118150.0,0.86303663]
[1755209617358,1e-08,118160.0,118150.0,0.87161697]
[1755209617717,1e-08,118160.0,118150.0,0.90907858]
[1755209618560,1e-08,118160.0,118150.0,0.41618794]
[1755209618773,1e-08,118160.0,118150.0,0.90907858]
[1755209619180,1e-08,118160.0,118150.0,0.91007858]
[1755209621776,1e-08,118160.0,118150.0,0.41718794]
[1755209621977,1e-08,118160.0,118150.0,0.91007858]
[1755209622682,1e-08,118160.0,118150.0,0.41718794]
[1755209622883,1e-08,118160.0,118150.0,0.91007858]
[1755209627365,0.00503001,118160.0,118150.0,0.41207794]
[1755209627592,0.00503001,118160.0,118150.0,0.90496858]
[1755209628599,0.00209001,118160.0,118150.0,0.90697858]
[1755209628975,1e-08,118160.0,118150.0,0.91013858]
[1755209632682,0.0002,118170.0,118160.0,0.50926201]
[1755209632683,1e-08,118170.0,118160.0,0.50926201]
[1755209632938,0.02,118180.0,118170.0,0.50924769]
[1755209633145,0.02,118180.0,118170.0,1.14106833]
[1755209633419,0.02,118180.0,118170.0,1.14422833]
[1755209634174,0.02209,118180.0,118170.0,1.16649033]
[1755209634371,0.02209,118180.0,118170.0,1.16749033]
[1755209634586,0.02503,118180.0,118170.0,0.75737093]
[1755209634779,0.02503,118180.0,118170.0,0.62049093]
[1755209635858,0.02503,118180.0,118170.0,1.11338157]
[1755209636256,0.02503,118180.0,118170.0,1.11438157]
[1755209641039,0.02503,118180.0,118170.0,1.25287157]
[1755209641244,0.02209,118180.0,118170.0,1.25287157]
[1755209642756,0.02503,118180.0,118170.0,0.53666969]
[1755209642976,0.16131,118180.0,118170.0,0.53666969]
[1755209643813,0.16131,118180.0,118170.0,1.02956033]
[1755209645458,0.16131,118180.0,118170.0,0.53666969]
[1755209649667,0.16131,118180.0,118170.0,1.09925219]
[1755209649888,0.16131,118180.0,118170.0,1.11641157]
[1755209651278,0.16131,118180.0,118170.0,0.62352093]
[1755209651479,0.16131,118180.0,118170.0,0.53869969]
[1755209653596,0.16131,118180.0,118170.0,0.51124769]
[1755209655381,0.24612405,118180.0,118170.0,0.17124769]
[1755209655597,0.90824806,118180.0,118170.0,0.17124769]
[1755209655808,0.90824806,118180.0,118170.0,0.002]
[1755209655809,0.91617701,118180.0,118170.0,0.002]
[1755209656017,0.93203657,118180.0,118170.0,0.002]
[1755209656220,0.94149516,118180.0,118170.0,0.002]
[1755209656641,0.94149516,118180.0,118170.0,0.001]
[1755209656757,0.56924769,118170.0,118160.0,0.16926201]
[1755209656981,1.17316487,118170.0,118160.0,0.16926201]
[1755209657399,1.30217238,118170.0,118160.0,0.16926201]
[1755209658249,0.80928174,118170.0,118150.0,0.17774015]
[1755209658453,1.21410833,118170.0,118160.0,0.16926201]
[1755209658697,1.35030833,118170.0,118160.0,0.16926201]
[1755209659092,1.35030833,118170.0,118150.0,0.17788739]
[1755209659093,1.35355833,118170.0,118150.0,0.17788739]
[1755209659295,0.7469667,118160.0,118150.0,0.16942358]
[1755209659456,0.28055335,118160.0,118150.0,0.16942358]
[1755209659657,0.77344399,118160.0,118150.0,0.16942358]
[1755209659855,0.77344399,118160.0,118150.0,0.00014724]
[1755209660062,0.78182581,118160.0,118150.0,0.16942358]
[1755209660485,0.78482581,118160.0,118150.0,0.16942358]
[1755209660706,0.29193517,118160.0,118150.0,0.16942358]
[1755209660905,0.78482581,118160.0,118150.0,0.16942358]
[1755209662499,0.29193517,118160.0,118150.0,0.16942358]
[1755209663159,0.29193517,118160.0,118150.0,0.00014724]
[1755209663358,0.78482581,118160.0,118150.0,0.00014724]
[1755209663855,0.86964705,118160.0,118150.0,0.00014724]
[1755209664158,0.78482581,118160.0,118150.0,0.00014724]
[1755209665256,0.29193517,118160.0,118150.0,0.00014724]
[1755209665481,0.78482581,118160.0,118150.0,0.00014724]
[1755209665860,0.81026081,118160.0,118150.0,0.00014724]
[1755209666711,0.81026081,118160.0,118150.0,0.16942358]
[1755209666882,0.31737017,118160.0,118150.0,0.16942358]
[1755209667085,0.81026081,118160.0,118150.0,0.16942358]
[1755209667673,0.31737017,118160.0,118150.0,0.16942358]
[1755209667869,0.81026081,118160.0,118150.0,0.16942358]
[1755209669469,0.6409988,118160.0,118150.0,0.16942358]
[1755209670256,0.24539134,118160.0,118150.0,0.17145358]
[1755209670415,0.44539134,118160.0,118150.0,0.17463358]
[1755209670626,0.30907134,118160.0,118150.0,0.17463358]
[1755209670827,0.44531134,118160.0,118150.0,0.17463358]
[1755209672445,0.44519134,118160.0,118150.0,0.66752422]
[1755209672651,0.44519134,118160.0,118150.0,0.75234546]
[1755209672848,0.44519134,118160.0,118150.0,0.66752422]
[1755209673160,0.44219134,118160.0,118150.0,0.66752422]
[1755209673577,0.44419134,118160.0,118150.0,0.66752422]
[1755209673778,0.15937729,118160.0,118150.0,0.66752422]
[1755209673992,0.02325729,118160.0,118150.0,0.75234546]
[1755209674193,0.15929729,118160.0,118150.0,0.75234546]
[1755209674432,0.15933729,118160.0,118150.0,0.75234546]
[1755209675411,0.15733729,118160.0,118150.0,0.75234546]
[1755209675612,0.15833729,118160.0,118150.0,0.75234546]
[1755209677211,0.15833729,118160.0,118150.0,0.66752422]
[1755209677840,0.13708,118160.0,118150.0,0.17463358]
[1755209679380,0.13708,118160.0,118150.0,0.66752422]
[1755209679914,0.001,118160.0,118150.0,0.66752422]
[1755209680112,0.13724,118160.0,118150.0,0.66752422]
[1755209680227,0.13724,118160.0,118150.0,0.75234546]
[1755209680973,0.1372,118160.0,118150.0,1.09234546]
[1755209681177,0.1372,118160.0,118150.0,1.11777246]
[1755209681606,0.22312815,118180.0,118170.0,0.16924769]
[1755209681744,0.3079422,118180.0,118170.0,0.66412833]
[1755209681968,0.4440622,118180.0,118170.0,0.75041608]
[1755209682384,0.2408222,118180.0,118170.0,0.75041608]
[1755209682768,0.1047022,118180.0,118170.0,0.25752544]
[1755209682971,0.2408222,118180.0,118170.0,0.25752544]
[1755209683194,0.1047022,118180.0,118170.0,0.25752544]
[1755209683384,0.1047022,118180.0,118170.0,0.17418769]
[1755209683584,0.2407422,118180.0,118170.0,0.17418769]
[1755209683847,0.1047022,118180.0,118170.0,0.17418769]
[1755209684086,0.2407022,118180.0,118170.0,0.18280949]
[1755209684483,0.2407022,118180.0,118170.0,0.76019506]
[1755209684698,0.2407022,118180.0,118170.0,0.75157326]
[1755209684902,0.2427022,118180.0,118170.0,0.75157326]
[1755209686845,0.2425422,118180.0,118170.0,0.75157326]
[1755209687288,0.2425422,118180.0,118170.0,0.66707833]
[1755209687492,0.2425422,118180.0,118170.0,0.67539902]
[1755209688396,0.2405422,118180.0,118170.0,0.67539902]
[1755209688828,0.2415422,118180.0,118170.0,0.67539902]
[1755209690860,0.15672815,118180.0,118170.0,0.67539902]
[1755209691066,0.15672815,118180.0,118170.0,0.76022026]
[1755209692942,0.02088815,118180.0,118170.0,0.76022026]
[1755209693162,0.15668815,118180.0,118170.0,0.76022026]
[1755209693664,0.15668815,118180.0,118170.0,0.60732962]
[1755209693858,0.15668815,118180.0,118170.0,1.01539902]
[1755209694062,0.15668815,118180.0,118170.0,1.04082202]
[1755209694684,0.15568815,118180.0,118170.0,1.04082202]
[1755209695404,0.15568815,118180.0,118170.0,0.54793138]
[1755209695604,0.15568815,118180.0,118170.0,0.63275262]
[1755209697307,1e-08,118180.0,118170.0,0.63275262]
[1755209697496,0.13580001,118180.0,118170.0,0.63275262]
[1755209698188,1e-08,118180.0,118170.0,1.12564326]
[1755209699713,1e-08,118180.0,118170.0,1.26144326]
[1755209700634,1e-08,118180.0,118170.0,1.12564326]
[1755209706952,0.00523001,118180.0,118170.0,0.54299138]
[1755209707197,0.00523001,118180.0,118170.0,0.51756838]
[1755209707397,0.9829347,118180.0,118170.0,0.16924769]
[1755209707677,0.49004406,118180.0,118170.0,0.16924769]
[1755209708462,0.49104406,118180.0,118170.0,0.16924769]
[1755209710575,1.15316807,118180.0,118170.0,0.16924769]
[1755209711733,0.66027743,118180.0,118170.0,0.16924769]
[1755209711952,0.9839347,118180.0,118170.0,0.16924769]
[1755209712205,1.15316807,118180.0,118170.0,0.16924769]
[1755209712869,1.16148835,118180.0,118170.0,0.16924769]
[1755209715439,1.18775835,118180.0,118170.0,0.16924769]
[1755209716681,0.69486771,118180.0,118170.0,0.16924769]
[1755209717089,0.69486771,118180.0,118170.0,0.18241364]
[1755209717273,0.69486771,118180.0,118170.0,0.16924769]
[1755209717881,0.49104406,118180.0,118170.0,0.16924769]
[1755209718634,0.66027743,118180.0,118170.0,0.16924769]
[1755209718818,0.49104406,118180.0,118170.0,0.16924769]
[1755209719046,0.49953221,118180.0,118170.0,0.16924769]
[1755209719912,0.49104406,118180.0,118170.0,0.16924769]
[1755209722824,0.9839347,118180.0,118170.0,0.16924769]
[1755209723931,0.49104406,118180.0,118170.0,0.16924769]
[1755209726333,0.49104406,118180.0,118170.0,0.20309738]
[1755209727343,0.49104406,118180.0,118170.0,0.16924769]
[1755209729436,0.48785406,118180.0,118170.0,0.17138769]
[1755209729647,0.62153406,118180.0,118170.0,0.17435769]
[1755209729851,0.42153406,118180.0,118170.0,0.17435769]
[1755209730263,0.22153406,118180.0,118170.0,0.17435769]
[1755209730485,0.42365406,118180.0,118170.0,0.17435769]
[1755209730683,0.22365406,118180.0,118170.0,0.17435769]
[1755209730892,0.42365406,118180.0,118170.0,0.17435769]
[1755209732426,0.22365406,118180.0,118170.0,0.17435769]
[1755209732639,0.42365406,118180.0,118170.0,0.17435769]
[1755209732803,0.22365406,118180.0,118170.0,0.17435769]
[1755209733004,0.42365406,118180.0,118170.0,0.17435769]
[1755209733680,0.22365406,118180.0,118170.0,0.17435769]
[1755209733904,0.42365406,118180.0,118170.0,0.17435769]
[1755209734119,0.22365406,118180.0,118170.0,0.17435769]
[1755209734260,0.42365406,118180.0,118170.0,0.17435769]
[1755209734678,0.22365406,118180.0,118170.0,0.17435769]
[1755209734904,0.42365406,118180.0,118170.0,0.17435769]
[1755209735680,0.22365406,118180.0,118170.0,0.17435769]
[1755209735881,0.42365406,118180.0,118170.0,0.17435769]
[1755209736273,0.22365406,118180.0,118170.0,0.17435769]
[1755209736494,0.42365406,118180.0,118170.0,0.17435769]
[1755209736698,0.22365406,118180.0,118170.0,0.17435769]
[1755209737205,0.42365406,118180.0,118170.0,0.17435769]
[1755209737410,0.22153406,118180.0,118170.0,0.17435769]
[1755209737584,0.42153406,118180.0,118170.0,0.17435769]
[1755209738040,0.08581406,118180.0,118170.0,0.66724833]
[1755209738247,0.42149406,118180.0,118170.0,0.75206957]
[1755209738648,0.22149406,118180.0,118170.0,0.76036295]
[1755209738886,0.42149406,118180.0,118170.0,0.26747231]
[1755209739065,0.22149406,118180.0,118170.0,0.26747231]
[1755209739302,0.42149406,118180.0,118170.0,0.26747231]
[1755209740334,0.42149406,118180.0,118170.0,0.17435769]
[1755209741832,0.42352406,118180.0,118170.0,0.17138769]
[1755209743825,0.42149406,118180.0,118170.0,0.17441769]
[1755209744264,0.20100001,118180.0,118170.0,0.17441769]
[1755209744462,0.13664001,118180.0,118170.0,0.75096408]
[1755209745988,0.00100001,118180.0,118170.0,0.75096408]
[1755209746202,0.13664001,118180.0,118170.0,0.25807344]
[1755209746410,0.13664001,118180.0,118170.0,0.66730833]
[1755209746814,0.00100001,118180.0,118170.0,0.66730833]
[1755209747212,0.13660001,118180.0,118170.0,0.66730833]
[1755209748188,0.13660001,118180.0,118170.0,0.17441769]
[1755209748388,0.13660001,118180.0,118170.0,0.66730833]
[1755209748589,0.13660001,118180.0,118170.0,0.75212957]
[1755209748971,0.13660001,118180.0,118170.0,0.25923893]
[1755209749201,0.13660001,118180.0,118170.0,0.66730833]
[1755209751641,0.13863001,118180.0,118170.0,0.66427833]
[1755209752043,0.13660001,118180.0,118170.0,0.66730833]
[1755209752828,0.13660001,118180.0,118170.0,0.17441769]
[1755209753080,0.13660001,118180.0,118170.0,0.66730833]
[1755209753412,0.13660001,118180.0,118170.0,0.69334112]
[1755209755230,0.00100001,118180.0,118170.0,0.69334112]
[1755209755850,0.13656001,118180.0,118170.0,0.69334112]
[1755209756229,0.00100001,118180.0,118170.0,0.69334112]
[1755209756437,0.13656001,118180.0,118170.0,0.69334112]
[1755209757980,0.13556001,118180.0,118170.0,0.69334112]
[1755209758180,0.13656001,118180.0,118170.0,0.69334112]
[1755209758582,0.13556001,118180.0,118170.0,0.69334112]
[1755209764382,1e-08,118180.0,118170.0,0.69334112]
[1755209764827,0.13548001,118180.0,118170.0,0.69334112]
[1755209767051,0.13548001,118180.0,118170.0,0.82882112]
[1755209768692,0.13548001,118180.0,118170.0,0.20045048]
[1755209768922,1e-08,118180.0,118170.0,0.69334112]
[1755209769144,0.13548001,118180.0,118170.0,0.69334112]
[1755209771314,0.13548001,118180.0,118170.0,0.71876312]
[1755209772739,0.13548001,118180.0,118170.0,0.69273033]
[1755209773047,1e-08,118180.0,118170.0,0.82817033]
[1755209774379,0.00201001,118180.0,118170.0,0.82300033]
[1755209774699,0.00201001,118180.0,118170.0,0.79964833]
[1755209774910,0.00201001,118180.0,118170.0,0.66420833]
[1755209775306,1e-08,118180.0,118170.0,0.66720833]
[1755209776536,1e-08,118180.0,118170.0,0.67952581]
[1755209777259,0.13108001,118190.0,118180.0,0.16923337]
[1755209777445,0.13309001,118190.0,118180.0,0.66212401]
[1755209778941,0.13309001,118190.0,118180.0,0.66412401]
[1755209779139,0.13309001,118190.0,118180.0,0.74894525]
[1755209780694,0.13309001,118190.0,118180.0,0.80828962]
[1755209781423,0.13309001,118190.0,118180.0,0.81035962]
[1755209782326,0.01,118200.0,118190.0,0.16921905]
[1755209782529,0.01,118200.0,118190.0,1.27575907]
[1755209782530,0.14536,118200.0,118190.0,1.27575907]
[1755209782699,0.14536,118200.0,118190.0,0.8113453]
[1755209783135,0.14536,118200.0,118190.0,0.72652406]
[1755209783553,0.14536,118200.0,118190.0,0.72752406]
[1755209783960,0.14536,118200.0,118190.0,0.72652406]
[1755209784779,0.14536,118200.0,118190.0,0.66506478]
[1755209785138,0.14536,118200.0,118190.0,0.66606478]
[1755209785341,0.14536,118200.0,118190.0,0.75088602]
[1755209788275,0.14737,118200.0,118190.0,0.75088602]
[1755209791212,0.14737,118200.0,118190.0,0.26011029]
[1755209791345,0.14737,118200.0,118190.0,0.75088602]
[1755209792432,0.14536,118200.0,118190.0,0.75088602]
[1755209793038,0.14536,118200.0,118190.0,0.26011029]
[1755209793259,0.0099,118200.0,118190.0,0.75088602]
[1755209793473,0.14514,118200.0,118190.0,0.75088602]
[1755209794394,0.14514,118200.0,118190.0,1.09088602]
[1755209796436,0.14514,118200.0,118190.0,1.22612602]
[1755209798020,0.14514,118200.0,118190.0,1.22512602]
[1755209798231,0.14514,118200.0,118190.0,1.22712602]
[1755209799781,0.1471,118200.0,118190.0,1.09188602]
[1755209799984,0.1471,118200.0,118190.0,1.08888602]
[1755209800385,0.15028,118200.0,118190.0,0.59604029]
[1755209801420,0.14506,118200.0,118190.0,1.09186602]
[1755209801644,0.34506,118200.0,118190.0,1.09186602]
[1755209802506,0.0099,118200.0,118190.0,1.00704478]
[1755209802718,0.14506,118200.0,118190.0,1.14220478]
[1755209802900,0.0099,118200.0,118190.0,1.14220478]
[1755209804861,0.0099,118200.0,118190.0,1.20345602]
[1755209805907,0.0099,118200.0,118190.0,0.65142905]
[1755209806142,0.0099,118200.0,118190.0,1.28827726]
[1755209806851,0.0099,118200.0,118190.0,1.84030423]
[1755209807056,0.0099,118200.0,118190.0,1.28827726]
[1755209809609,0.13523,118210.0,118190.0,0.73625029]
[1755209809785,0.00021721,118210.0,118200.0,1.27748877]
[1755209810005,0.00021721,118210.0,118200.0,1.30283084]
[1755209810208,0.00021721,118210.0,118200.0,0.1987769]
[1755209810352,0.00021721,118210.0,118200.0,1.32824684]
[1755209810750,0.00217721,118210.0,118200.0,0.71176107]
[1755209811276,0.00217721,118210.0,118200.0,0.71484107]
[1755209811477,0.00021721,118210.0,118200.0,0.71484107]
[1755209811678,0.00021721,118210.0,118200.0,0.2241929]
[1755209811897,0.00217721,118210.0,118200.0,0.71484107]
[1755209812137,0.14051721,118210.0,118200.0,0.71176107]
[1755209812588,0.14051721,118210.0,118200.0,0.2221129]
[1755209812792,0.14051721,118210.0,118200.0,0.71276107]
[1755209813114,0.14051721,118210.0,118200.0,0.2201429]
[1755209813323,0.14051721,118210.0,118200.0,0.17875573]
[1755209817623,0.14051721,118210.0,118200.0,0.6694039]
[1755209817823,0.13733721,118210.0,118200.0,0.6744539]
[1755209818040,0.13537721,118210.0,118200.0,0.6744539]
[1755209818400,0.13537721,118210.0,118200.0,0.18380573]
[1755209818599,0.13537721,118210.0,118200.0,0.71129355]
[1755209819122,0.00021721,118210.0,118200.0,0.71129355]
[1755209819479,0.00021721,118210.0,118200.0,0.73671055]
[1755209820878,0.00021721,118210.0,118200.0,0.87215055]
[1755209821285,0.00217721,118210.0,118200.0,0.24298238]
[1755209821484,0.14075721,118210.0,118200.0,0.73363055]
[1755209821716,0.00535721,118210.0,118200.0,0.73363055]
[1755209821906,0.00217721,118210.0,118200.0,0.73363055]
[1755209822119,0.13757721,118210.0,118200.0,0.73363055]
[1755209822447,0.13757721,118210.0,118200.0,0.70821355]
[1755209822772,0.14075721,118210.0,118200.0,0.70821355]
[1755209825770,0.13757721,118210.0,118200.0,0.21756538]
[1755209825979,0.13757721,118210.0,118200.0,0.70821355]
[1755209826580,0.13757721,118210.0,118200.0,0.71129355]
[1755209827031,0.13757721,118210.0,118200.0,0.69966255]
[1755209827270,0.14062721,118210.0,118200.0,0.17020473]
[1755209827483,0.42544126,118210.0,118200.0,0.17020473]
[1755209827690,0.91608943,118210.0,118200.0,0.17020473]
[1755209827893,0.42544126,118210.0,118200.0,0.17020473]
[1755209828111,1.08527985,118210.0,118200.0,0.17020473]
[1755209828325,1.10933985,118210.0,118200.0,0.001]
[1755209829487,0.35,118200.0,118190.0,0.1692188]
[1755209829727,0.93056222,118200.0,118190.0,0.1692188]
[1755209829940,0.46145753,118200.0,118190.0,0.1692188]
[1755209830371,0.46145753,118200.0,118190.0,0.20391018]
[1755209830526,0.24657753,118200.0,118190.0,0.69667835]
[1755209830731,0.24352753,118200.0,118190.0,0.69667835]
[1755209830937,0.15871348,118200.0,118190.0,0.69667835]
[1755209831786,0.15871348,118200.0,118190.0,0.69767835]
[1755209832240,0.15871348,118200.0,118190.0,0.66298697]
[1755209832645,0.15871348,118200.0,118190.0,0.1723388]
[1755209832827,0.16176348,118200.0,118190.0,0.1723388]
[1755209835708,0.15666348,118200.0,118190.0,0.66298697]
[1755209835869,0.15666348,118200.0,118190.0,0.66620697]
[1755209836069,0.15666348,118200.0,118190.0,0.75102821]
[1755209836271,0.02154348,118200.0,118190.0,0.75102821]
[1755209836488,0.13512,118200.0,118190.0,0.75102821]
[1755209836691,0.13512,118200.0,118190.0,0.66620697]
[1755209836908,0.20021721,118210.0,118200.0,0.16920473]
[1755209837155,0.42220126,118210.0,118200.0,0.17132473]
[1755209837489,0.42525126,118210.0,118200.0,0.16920473]
[1755209843222,0.08708126,118210.0,118200.0,0.17132473]
[1755209843432,0.22220126,118210.0,118200.0,0.2547659]
[1755209843652,0.22220126,118210.0,118200.0,0.2579859]
[1755209844127,0.08708126,118210.0,118200.0,0.2579859]
[1755209844335,0.22220126,118210.0,118200.0,0.2579859]
[1755209844585,0.22220126,118210.0,118200.0,0.74863407]
[1755209844586,0.00021721,118210.0,118200.0,0.74863407]
[1755209844786,0.13533721,118210.0,118200.0,0.74863407]
[1755209845008,0.14043721,118210.0,118200.0,0.2526459]
[1755209845211,0.00531721,118210.0,118200.0,0.16920473]
[1755209845419,0.14043721,118210.0,118200.0,0.16920473]
[1755209845631,0.14043721,118210.0,118200.0,0.17132473]
[1755209845835,0.13533721,118210.0,118200.0,0.6651929]
[1755209846015,0.13533721,118210.0,118200.0,0.75001414]
[1755209847476,0.13533721,118210.0,118200.0,0.6651929]
[1755209847626,0.13738721,118210.0,118200.0,0.17132473]
[1755209849433,0.91589943,118210.0,118200.0,0.16920473]
[1755209849850,0.42525126,118210.0,118200.0,0.16920473]
[1755209850282,0.59444168,118210.0,118200.0,0.16920473]
[1755209851283,1.16991109,118210.0,118200.0,0.16920473]
[1755209851713,1.08508985,118210.0,118200.0,0.16920473]
[1755209852202,0.42525126,118210.0,118200.0,0.16920473]
[1755209856003,0.22525126,118210.0,118200.0,0.16920473]
[1755209856213,0.42525126,118210.0,118200.0,0.16920473]
[1755209858228,0.29013126,118210.0,118200.0,0.23686659]
[1755209858397,0.28503126,118210.0,118200.0,0.26471161]
[1755209858593,0.42059126,118210.0,118200.0,0.26774161]
[1755209858807,0.42059126,118210.0,118200.0,0.24199659]
[1755209859593,0.42578126,118210.0,118200.0,0.23686659]
[1755209859847,0.42578126,118210.0,118200.0,0.23896659]
[1755209859848,0.28503126,118210.0,118200.0,0.23896659]
[1755209860124,0.02,118230.0,118220.0,0.16917611]
[1755209860344,0.02,118230.0,118220.0,0.66192428]
[1755209860583,0.15548,118230.0,118220.0,0.74806575]
[1755209860805,0.15746,118230.0,118220.0,0.25438758]
[1755209861026,0.15746,118230.0,118220.0,0.17127611]
[1755209861887,0.15746,118230.0,118220.0,0.17430611]
[1755209862102,0.15548,118230.0,118220.0,0.17430611]
[1755209862329,0.15548,118230.0,118220.0,0.66495428]
[1755209862759,0.15548,118230.0,118220.0,0.67342657]
[1755209862989,0.15548,118230.0,118220.0,0.74977552]
[1755209863175,0.15746,118230.0,118220.0,0.74674552]
[1755209864039,0.15746,118230.0,118220.0,0.25609735]
[1755209864272,0.15746,118230.0,118220.0,0.16917611]
[1755209864508,0.24548405,118230.0,118220.0,0.16917611]
[1755209864727,0.44548405,118230.0,118220.0,0.16917611]
[1755209865481,0.59548405,118230.0,118220.0,0.16917611]
[1755209865709,1.25529402,118230.0,118210.0,0.16919042]
[1755209865916,0.57867222,118220.0,118210.0,0.16919042]
[1755209866129,0.94982833,118220.0,118210.0,0.16919042]
[1755209866366,0.45918016,118220.0,118210.0,0.16919042]
[1755209867323,0.31919042,118210.0,118200.0,0.17766496]
[1755209867575,0.54463447,118210.0,118200.0,0.17766496]
[1755209868218,0.37544405,118210.0,118200.0,0.17766496]
[1755209869785,0.37544405,118210.0,118200.0,0.17866496]
[1755209870112,0.37544405,118210.0,118200.0,0.17766496]
[1755209872545,0.37544405,118210.0,118200.0,0.21350243]
[1755209872749,0.37021405,118210.0,118200.0,0.7092806]
[1755209872871,0.37021405,118210.0,118200.0,0.21863243]
[1755209874781,0.37021405,118210.0,118200.0,0.18279496]
[1755209877808,0.37219405,118210.0,118200.0,0.18279496]
[1755209878748,0.37219405,118210.0,118200.0,0.17976496]
[1755209880661,0.37540405,118210.0,118200.0,0.17976496]
[1755209880794,0.37267405,118210.0,118200.0,0.17976496]
[1755209880997,0.08481405,118210.0,118200.0,0.69116902]
[1755209881201,0.22069405,118210.0,118200.0,0.69116902]
[1755209883335,0.22069405,118210.0,118200.0,0.20052085]
[1755209883541,0.22069405,118210.0,118200.0,0.67344313]
[1755209885680,0.22069405,118210.0,118200.0,0.18279496]
[1755209885876,0.22069405,118210.0,118200.0,0.67344313]
[1755209886097,0.22069405,118210.0,118200.0,0.18279496]
[1755209886972,0.22265405,118210.0,118200.0,0.17976496]
[1755209887177,0.22587405,118210.0,118200.0,0.17976496]
[1755209890130,0.22587405,118210.0,118200.0,0.17766496]
[1755209890284,0.37587405,118210.0,118200.0,0.17766496]
[1755209891510,0.37587405,118210.0,118200.0,0.17972496]
[1755209897948,0.37587405,118210.0,118200.0,0.17766496]
[1755209898065,1.12901878,118210.0,118190.0,0.16921211]
[1755209898275,0.2,118190.0,118180.0,0.17769503]
[1755209898487,0.91266222,118190.0,118180.0,0.17769503]
[1755209898726,0.42523405,118190.0,118180.0,0.17769503]
[1755209899510,0.42523405,118190.0,118180.0,0.17969503]
[1755209899686,0.43363274,118190.0,118180.0,0.17769503]
[1755209900184,0.43363274,118190.0,118180.0,0.17869503]
[1755209901686,0.80083338,118190.0,118180.0,0.17869503]
[1755209901916,1.24349996,118190.0,118180.0,0.001]
[1755209902368,0.75285179,118190.0,118180.0,0.001]
[1755209902573,1.24349996,118190.0,118180.0,0.001]
[1755209902973,0.36923337,118180.0,118170.0,0.17771007]
[1755209903222,0.97101348,118180.0,118170.0,0.17771007]
[1755209904188,0.31113194,118180.0,118170.0,0.17771007]
[1755209904431,0.48036531,118180.0,118170.0,0.17771007]
[1755209905756,0.31113194,118180.0,118170.0,0.17771007]
[1755209906000,0.45922742,118180.0,118170.0,0.17771007]
[1755209907316,0.25922742,118180.0,118170.0,0.17771007]
[1755209907530,0.35,118170.0,118160.0,0.17771226]
[1755209907748,0.57535405,118170.0,118160.0,0.17771226]
[1755209907968,0.59679007,118170.0,118160.0,0.17771226]
[1755209908183,0.76603776,118170.0,118160.0,0.17771226]
[1755209908402,0.59679007,118170.0,118160.0,0.17771226]
[1755209908627,0.59679007,118170.0,118160.0,0.17871226]
[1755209908850,1.25681034,118170.0,118160.0,0.001]
[1755209909255,1.28055034,118170.0,118160.0,0.001]
[1755209909473,1.25911432,118170.0,118160.0,0.001]
[1755209909676,6.76556768,118170.0,118160.0,0.001]
[1755209909903,6.86556768,118170.0,118160.0,0.001]
[1755209910117,6.95829227,118170.0,118160.0,0.001]
[1755209910327,6.4676441,118170.0,118160.0,0.001]
[1755209911010,0.71929067,118140.0,118130.0,0.17776928]
[1755209911247,0.96229261,118140.0,118130.0,0.17776928]
[1755209911448,0.79622194,118140.0,118130.0,0.17776928]
[1755209912555,0.79722194,118140.0,118130.0,0.17982928]
[1755209913504,0.65856194,118140.0,118130.0,0.21587708]
[1755209913807,0.39196194,118140.0,118130.0,0.67341745]
[1755209914192,0.25660194,118140.0,118130.0,0.67341745]
[1755209914400,0.39196194,118140.0,118130.0,0.67341745]
[1755209915795,0.39096194,118140.0,118130.0,0.67341745]
[1755209915950,0.10560194,118140.0,118130.0,0.67341745]
[1755209916193,0.24156194,118140.0,118130.0,0.75823869]
[1755209918449,0.24156194,118140.0,118130.0,0.26759052]
[1755209918655,0.24156194,118140.0,118130.0,0.67341745]
[1755209920459,0.02078789,118140.0,118130.0,0.67341745]
[1755209920677,0.15658789,118140.0,118130.0,0.67341745]
[1755209922137,0.15658789,118140.0,118130.0,0.67441745]
[1755209922381,0.15658789,118140.0,118130.0,0.18376928]
[1755209922598,0.15658789,118140.0,118130.0,0.72414525]
[1755209929948,0.02078789,118140.0,118130.0,0.72414525]
[1755209930249,0.01577291,118160.0,118150.0,0.16927634]
[1755209930521,0.16912732,118170.0,118160.0,0.16926201]
[1755209930732,0.25598137,118170.0,118160.0,0.25453466]
[1755209930944,0.25598137,118170.0,118160.0,0.66205018]
[1755209931159,0.37273846,118170.0,118160.0,0.66205018]
[1755209931345,0.22273846,118170.0,118160.0,0.66527018]
[1755209931546,0.22069846,118170.0,118160.0,0.66527018]
[1755209931722,0.22169846,118170.0,118160.0,0.66527018]
[1755209932122,0.22273846,118170.0,118160.0,0.66527018]
[1755209932994,0.22273846,118170.0,118160.0,0.74958039]
[1755209934472,0.22069846,118170.0,118160.0,0.74958039]
[1755209934673,0.00012441,118170.0,118160.0,0.74958039]
[1755209934877,0.13572441,118170.0,118160.0,0.74958039]
[1755209935934,0.13572441,118170.0,118160.0,1.08958039]
[1755209939472,0.13556441,118170.0,118160.0,1.08958039]
[1755209943173,0.13556441,118170.0,118160.0,0.59893222]
[1755209943384,0.13556441,118170.0,118160.0,1.11500539]
[1755209944010,0.00012441,118170.0,118160.0,1.11500539]
[1755209944215,0.13568441,118170.0,118160.0,1.11500539]
[1755209944431,0.13568441,118170.0,118160.0,1.60565356]
[1755209945902,0.13568441,118170.0,118160.0,0.62435722]
[1755209946049,0.13568441,118170.0,118160.0,1.60565356]
[1755209946775,0.00012441,118170.0,118160.0,1.60565356]
[1755209950849,0.00012441,118170.0,118160.0,1.74109356]
[1755209955527,0.00012441,118170.0,118160.0,1.25044539]
[1755209956495,0.00012441,118170.0,118160.0,1.74109356]
[1755209957928,0.00012441,118170.0,118160.0,1.25044539]
[1755209960216,0.00012441,118170.0,118160.0,1.74109356]
[1755209966970,0.00012441,118170.0,118160.0,0.75979722]
[1755209967170,0.00012441,118170.0,118160.0,1.74109356]
[1755209967356,0.00012441,118170.0,118160.0,1.60565356]
[1755209967694,0.00213441,118170.0,118160.0,1.25024539]
[1755209968425,0.00213441,118170.0,118160.0,1.74089356]
[1755209968717,0.00213441,118170.0,118160.0,0.75959722]
[1755209968866,0.00213441,118170.0,118160.0,1.65658335]
[1755209969482,0.00213441,118170.0,118160.0,1.16593518]
[1755209970500,0.00213441,118170.0,118160.0,0.67528701]
[1755209970729,0.00213441,118170.0,118160.0,1.65658335]
[1755209970934,0.00213441,118170.0,118160.0,1.52134335]
[1755209971132,0.00525441,118170.0,118160.0,0.19468701]
[1755209971339,0.09006846,118170.0,118160.0,0.16926201]
[1755209971777,0.44006846,118170.0,118160.0,0.16926201]
[1755209971988,0.63374615,118170.0,118160.0,0.16926201]
[1755209972206,0.46449846,118170.0,118160.0,0.16926201]
[1755209972415,0.48035473,118170.0,118160.0,0.16926201]
[1755209973213,0.48135473,118170.0,118160.0,0.16926201]